bitfinex/quotes_SOLUSD_20220218
["timestamp","ask_amount","ask_price","bid_price","bid_amount"]
[1645217495876,13.22,90.79,90.721,6.0]
[1645217496175,5.509,90.789,90.721,6.0]
[1645217496577,13.22,90.79,90.721,6.0]
[1645217497777,29.7555,90.79,90.721,6.0]
[1645217499604,29.7555,90.79,90.722,110.0]
[1645217499805,29.7555,90.79,90.725,153.77981823]
[1645217500010,13.22,90.79,90.731,110.0]
[1645217500207,13.22,90.79,90.733,110.0]
[1645217500404,24.1943,90.795,90.735,110.0]
[1645217500605,24.1943,90.795,90.736,0.25]
[1645217500806,24.1943,90.795,90.737,110.0]
[1645217501007,24.1943,90.795,90.741,110.0]
[1645217501205,6.0,90.794,90.743,110.0]
[1645217501411,16.5297,90.83,90.751,110.0]
[1645217501603,16.5297,90.83,90.744,6.25]
[1645217501604,16.5297,90.83,90.753,110.0]
[1645217501804,0.25,90.825,90.754,6.25]
[1645217502005,24.2773,90.829,90.755,110.0]
[1645217502206,1.54330377,90.884,90.754,6.25]
[1645217502207,5.507,90.848,90.757,110.0]
[1645217502406,13.22,90.87,90.759,110.0]
[1645217502609,47.69185585,90.859,90.76,6.25]
[1645217502807,11.506,90.858,90.761,0.25]
[1645217503008,11.506,90.858,90.758,0.25]
[1645217503410,110.0,90.853,90.723,17.21809785]
[1645217503608,13.22,90.84,90.743,0.25]
[1645217503810,106.56793013,90.839,90.743,0.25]
[1645217504607,110.0,90.838,90.743,0.25]
[1645217504810,110.0,90.836,90.732,6.25]
[1645217505008,115.507,90.835,90.732,0.25]
[1645217505211,13.22,90.82,90.732,0.25]
[1645217505413,65.5291124,90.819,90.731,6.0]
[1645217505609,5.508,90.818,90.731,6.0]
[1645217506611,16.5321,90.81,90.731,6.0]
[1645217506809,13.22,90.8,90.725,6.0]
[1645217507110,5.508,90.799,90.725,6.0]
[1645217507608,67.53899151,90.798,90.725,6.0]
[1645217507812,16.5363,90.79,90.726,0.25]
[1645217508409,16.5363,90.79,90.73,16.5333]
[1645217508609,67.53899151,90.798,90.731,6.0]
[1645217508911,6.0,90.797,90.732,26.4708253]
[1645217509110,6.0,90.797,90.731,6.0]
[1645217510111,6.0,90.797,90.726,52.46115722]
[1645217510314,6.0,90.797,90.727,6.0]
[1645217511411,16.5346,90.79,90.727,6.0]
[1645217511610,0.25,90.789,90.727,6.0]
[1645217512011,0.25,90.789,90.725,6.0]
[1645217512212,6.25,90.789,90.725,6.0]
[1645217512915,6.25,90.789,90.726,48.49016872]
[1645217513115,6.0,90.789,90.728,110.0]
[1645217513313,6.0,90.789,90.726,48.49016872]
[1645217513314,67.53899151,90.798,90.731,110.0]
[1645217513515,42.75149151,90.798,90.733,110.0]
[1645217513814,42.75149151,90.798,90.735,110.0]
[1645217514012,42.75149151,90.798,90.737,110.0]
[1645217514213,42.75149151,90.798,90.739,110.0]
[1645217514413,42.75149151,90.798,90.74,132.7807]
[1645217514613,42.75149151,90.798,90.74,126.7807]
[1645217514817,42.75149151,90.798,90.741,6.0]
[1645217515115,42.75149151,90.798,90.742,0.25]
[1645217516018,42.75149151,90.798,90.739,110.0]
[1645217516222,42.75149151,90.798,90.74,6.25]
[1645217516421,42.75149151,90.798,90.75,16.5284]
[1645217516619,42.75149151,90.798,90.751,0.25]
[1645217516819,42.75149151,90.798,90.75,16.5284]
[1645217517019,42.75149151,90.798,90.712,110.0]
[1645217517219,29.3593,90.797,90.731,6.0]
[1645217517418,29.3593,90.797,90.725,6.0]
[1645217517619,0.25,90.796,90.726,0.25]
[1645217518329,0.25,90.796,90.73,16.5336]
[1645217518523,0.25,90.796,90.731,6.0]
[1645217519926,0.25,90.796,90.74,16.532]
[1645217520528,6.25,90.796,90.74,16.532]
[1645217520732,5.508,90.795,90.727,6.0]
[1645217521027,23.3593,90.797,90.725,6.0]
[1645217521228,0.25,90.796,90.726,0.25]
[1645217521632,0.25,90.796,90.73,16.5334]
[1645217521830,8.1383831,90.795,90.7,55.1126]
[1645217522030,8.1383831,90.795,90.701,24.4609]
[1645217522231,112.6293831,90.794,90.701,24.4609]
[1645217522430,13.22,90.79,90.701,24.4609]
[1645217522630,5.509,90.789,90.701,24.4609]
[1645217522831,16.5381,90.78,90.71,16.537]
[1645217523031,70.7091449,90.779,90.71,16.537]
[1645217523633,46.5352449,90.779,90.71,16.537]
[1645217523833,46.5352449,90.779,90.712,0.25]
[1645217524232,46.5352449,90.779,90.71,16.537]
[1645217524432,6.0,90.778,90.71,16.537]
[1645217524637,6.0,90.778,90.712,46.28093821]
[1645217524835,24.6216,90.777,90.713,0.25]
[1645217525253,24.6216,90.777,90.72,16.5354]
[1645217525856,24.6216,90.777,90.72,62.51291306]
[1645217526055,24.6216,90.777,90.721,0.25]
[1645217526755,16.5334,90.8,90.731,110.0]
[1645217526956,24.1432,90.808,90.732,0.25]
[1645217527155,5.508,90.826,90.733,110.0]
[1645217527355,24.1432,90.825,90.735,110.0]
[1645217527556,48.3842364,90.824,90.737,110.0]
[1645217527855,48.3842364,90.824,90.738,6.25]
[1645217528056,48.3842364,90.824,90.738,8.8793831]
[1645217528255,6.0,90.823,90.738,6.25]
[1645217528458,29.7503,90.82,90.74,16.5318]
[1645217528756,5.507,90.819,90.704,17.21809785]
[1645217528955,8.1363831,90.819,90.712,28.8836]
[1645217529156,8.1363831,90.819,90.713,53.27602644]
[1645217529356,0.25,90.818,90.714,115.758]
[1645217529556,5.508,90.817,90.714,115.758]
[1645217529756,5.508,90.817,90.716,110.0]
[1645217529956,5.508,90.817,90.717,116.25]
[1645217530356,16.5337,90.8,90.73,16.5334]
[1645217530558,126.5337,90.8,90.717,0.25]
[1645217530757,110.0,90.798,90.712,23.1256]
[1645217530957,110.0,90.796,90.712,23.1256]
[1645217531361,49.79735245,90.794,90.712,23.1256]
[1645217531557,13.22,90.79,90.712,23.1256]
[1645217531958,2.6293831,90.789,90.712,23.1256]
[1645217532157,2.6293831,90.789,90.713,0.25]
[1645217532357,2.6293831,90.789,90.71,16.5375]
[1645217532558,30.1529,90.788,90.674,110.0]
[1645217532770,30.1529,90.788,90.686,110.0]
[1645217532973,30.1529,90.788,90.687,135.148]
[1645217533170,6.0,90.787,90.687,134.898]
[1645217533371,47.49821221,90.779,90.702,24.24217358]
[1645217533581,47.49821221,90.779,90.703,116.0]
[1645217533775,47.49821221,90.779,90.705,110.0]
[1645217533974,47.49821221,90.779,90.706,116.0]
[1645217534373,47.49821221,90.779,90.71,16.5357]
[1645217534673,47.49821221,90.779,90.711,6.25]
[1645217534873,47.49821221,90.779,90.712,0.25]
[1645217535074,47.49821221,90.779,90.707,0.25]
[1645217535374,6.0,90.778,90.71,16.5372]
[1645217535574,0.25,90.777,90.71,16.5372]
[1645217535775,23.8633,90.777,90.71,16.5372]
[1645217538579,16.5395,90.77,90.704,5.51]
[1645217539379,110.0,90.769,90.704,5.51]
[1645217539580,116.0,90.768,90.673,23.2194]
[1645217539780,116.0,90.768,90.674,6.0]
[1645217539781,39.1908463,90.749,90.674,6.0]
[1645217539983,23.4042,90.748,90.673,23.2194]
[1645217540581,110.0,90.747,90.67,16.5444]
[1645217540784,110.0,90.739,90.663,22.5294]
[1645217540982,115.511,90.738,90.663,22.5294]
[1645217541180,118.1403831,90.738,90.663,22.5294]
[1645217541587,27.4904831,90.737,90.663,22.5294]
[1645217541782,52.72171945,90.735,90.663,22.5294]
[1645217541984,5.511,90.734,90.663,22.5294]
[1645217542186,52.72171945,90.735,90.664,8.6293831]
[1645217542385,0.25,90.734,90.664,8.6293831]
[1645217542684,0.25,90.734,90.663,22.5294]
[1645217542883,23.3349,90.734,90.66,16.5462]
[1645217543087,5.511,90.733,90.661,6.0]
[1645217543289,6.0,90.732,90.661,6.0]
[1645217543687,6.0,90.731,90.661,6.0]
[1645217543887,23.0849,90.734,90.661,6.0]
[1645217544091,6.0,90.733,90.661,6.0]
[1645217544492,16.5472,90.73,90.661,6.0]
[1645217544688,6.0,90.733,90.661,6.0]
[1645217545492,2.6293831,90.732,90.65,16.548]
[1645217545692,13.22,90.73,90.65,16.548]
[1645217545892,115.763,90.729,90.65,16.548]
[1645217546094,118.3923831,90.729,90.643,22.6411]
[1645217546294,2.6293831,90.728,90.643,22.6411]
[1645217546597,5.513,90.727,90.643,22.6411]
[1645217546794,5.513,90.727,90.644,0.25]
[1645217546993,0.25,90.729,90.644,0.25]
[1645217547397,2.8793831,90.729,90.644,0.25]
[1645217547595,2.8793831,90.729,90.644,6.25]
[1645217547794,2.8793831,90.729,90.644,0.25]
[1645217547993,0.25,90.729,90.644,0.25]
[1645217548195,0.25,90.729,90.644,6.25]
[1645217548394,0.25,90.729,90.65,16.5483]
[1645217548594,0.25,90.729,90.651,28.81270021]
[1645217549198,6.25,90.729,90.651,28.81270021]
[1645217549595,6.25,90.729,90.66,16.5465]
[1645217549895,6.25,90.729,90.661,0.25]
[1645217550295,6.25,90.729,90.66,16.5465]
[1645217550497,6.25,90.729,90.643,22.6411]
[1645217550696,2.6293831,90.728,90.65,16.5481]
[1645217550897,5.513,90.727,90.65,16.5481]
[1645217551099,5.513,90.727,90.643,22.6411]
[1645217551511,0.25,90.726,90.643,22.6411]
[1645217551714,5.513,90.725,90.644,0.25]
[1645217551913,13.22,90.72,90.644,0.25]
[1645217552113,48.25445933,90.719,90.643,22.6411]
[1645217552512,48.25445933,90.719,90.64,16.5486]
[1645217552513,2.6293831,90.718,90.64,16.5486]
[1645217552712,110.0,90.717,90.606,110.0]
[1645217553012,2.6293831,90.716,90.615,141.9645831]
[1645217553415,0.25,90.715,90.616,156.94259427]
[1645217553614,0.25,90.715,90.617,6.25]
[1645217553815,2.6293831,90.714,90.617,6.25]
[1645217554219,13.22,90.71,90.617,6.25]
[1645217554415,6.0,90.709,90.63,16.5519]
[1645217554615,23.8369,90.708,90.631,35.88960668]
[1645217555320,23.8369,90.708,90.632,2.6293831]
[1645217555519,15.9,90.72,90.641,110.0]
[1645217555716,15.9,90.72,90.64,16.5499]
[1645217555717,6.0,90.718,90.643,110.0]
[1645217555919,6.0,90.718,90.645,43.83104299]
[1645217556118,6.0,90.718,90.646,6.25]
[1645217556519,6.0,90.718,90.646,8.8793831]
[1645217556722,6.0,90.718,90.647,2.6293831]
[1645217556920,6.0,90.718,90.648,6.25]
[1645217557321,6.0,90.718,90.66,16.5453]
[1645217557521,6.0,90.718,90.661,0.25]
[1645217557719,24.5509,90.733,90.661,8.8793831]
[1645217558120,6.0,90.732,90.661,8.8793831]
[1645217558519,46.75152417,90.731,90.662,30.12177486]
[1645217558820,0.25,90.73,90.663,6.25]
[1645217559020,0.25,90.73,90.67,16.5434]
[1645217559227,6.0,90.749,90.672,110.0]
[1645217559420,0.25,90.748,90.674,110.0]
[1645217559620,0.25,90.748,90.676,110.0]
[1645217559822,6.0,90.749,90.678,110.0]
[1645217560021,54.09819706,90.775,90.68,43.83104299]
[1645217560224,11.511,90.774,90.681,30.4078]
[1645217560428,15.9,90.77,90.69,16.541]
[1645217560626,5.51,90.769,90.69,16.541]
[1645217561025,110.0,90.768,90.681,24.1578]
[1645217561226,28.8414,90.767,90.666,23.635]
[1645217561426,16.5427,90.76,90.67,16.5443]
[1645217561628,110.0,90.758,90.67,16.5443]
[1645217561828,5.511,90.757,90.67,16.5443]
[1645217562026,23.3304,90.756,90.67,16.5443]
[1645217562227,44.86317136,90.754,90.671,54.75604077]
[1645217562425,15.9,90.75,90.671,54.75604077]
[1645217562625,5.761,90.749,90.671,54.75604077]
[1645217562826,5.761,90.749,90.672,0.25]
[1645217563026,0.25,90.749,90.672,0.25]
[1645217563327,0.25,90.749,90.68,16.5429]
[1645217563529,0.25,90.749,90.681,0.25]
[1645217563828,0.25,90.749,90.674,110.0]
[1645217564029,44.86317136,90.754,90.675,11.511]
[1645217564228,2.6293831,90.748,90.69,16.541]
[1645217564431,2.6293831,90.748,90.671,23.6454]
[1645217564629,5.511,90.747,90.671,23.6454]
[1645217565028,2.6293831,90.746,90.671,23.6454]
[1645217565229,30.0548,90.745,90.671,23.6454]
[1645217565430,30.0548,90.745,90.672,45.39105344]
[1645217565730,8.1403831,90.744,90.672,45.39105344]
[1645217565928,15.9,90.74,90.672,45.39105344]
[1645217566130,39.8283059,90.738,90.672,45.39105344]
[1645217566733,42.457689,90.738,90.672,45.39105344]
[1645217567131,39.8283059,90.738,90.672,45.39105344]
[1645217567330,39.8283059,90.738,90.673,0.25]
[1645217567535,0.25,90.737,90.673,0.25]
[1645217567730,0.25,90.737,90.673,110.25]
[1645217568131,39.8283059,90.738,90.673,0.25]
[1645217568532,5.511,90.768,90.673,110.25]
[1645217568732,15.9,90.77,90.673,110.25]
[1645217568932,4.35984988,90.769,90.673,110.25]
[1645217569133,4.35984988,90.769,90.674,6.0]
[1645217569333,0.25,90.768,90.68,16.5429]
[1645217569534,43.95044499,90.767,90.681,0.25]
[1645217569736,176.08,90.766,90.632,5.0]
[1645217569934,176.08,90.766,90.609,5.72971594]
[1645217569935,5.0,90.762,90.609,5.72971594]
[1645217570136,200.24330377,90.74,90.601,24.6188]
[1645217570334,15.9,90.73,90.602,132.793]
[1645217570540,16.5487,90.72,90.64,16.55]
[1645217570736,15.9,90.71,90.641,41.14860527]
[1645217572339,15.9,90.71,90.65,16.5484]
[1645217573339,0.25,90.709,90.65,16.5484]
[1645217574340,2.6293831,90.708,90.65,16.5484]
[1645217575143,0.25,90.709,90.65,16.5484]
[1645217576540,29.5383,90.719,90.651,110.0]
[1645217576742,24.0253,90.719,90.661,110.0]
[1645217577042,24.0253,90.719,90.662,0.25]
[1645217577443,43.87296812,90.729,90.663,110.0]
[1645217577645,43.87296812,90.729,90.664,0.25]
[1645217577844,43.87296812,90.729,90.67,16.5426]
[1645217578044,43.87296812,90.729,90.671,110.25]
[1645217578244,0.25,90.728,90.673,110.0]
[1645217578444,0.25,90.728,90.674,116.25]
[1645217578646,6.0,90.749,90.674,110.25]
[1645217578847,0.25,90.748,90.674,110.25]
[1645217579045,0.25,90.748,90.68,16.5403]
[1645217579444,0.25,90.748,90.602,5.55]
[1645217579445,2.6293831,90.747,90.602,5.55]
[1645217579647,28.0455,90.746,90.621,24.9987]
[1645217580047,2.6293831,90.745,90.621,24.9987]
[1645217580246,5.511,90.744,90.621,24.9987]
[1645217580446,15.9,90.73,90.622,6.0]
[1645217580646,28.4975,90.729,90.66,16.5452]
[1645217580849,52.16842723,90.748,90.66,16.5452]
[1645217581050,22.9835,90.742,90.661,6.0]
[1645217581248,22.9835,90.742,90.662,53.08997942]
[1645217581452,22.9835,90.742,90.663,116.25]
[1645217581750,22.9835,90.742,90.68,16.5417]
[1645217582153,22.9835,90.742,90.664,22.8558]
[1645217582154,6.0,90.741,90.664,22.8558]
[1645217582552,5.511,90.74,90.664,22.8558]
[1645217582752,5.511,90.74,90.67,16.5434]
[1645217582953,0.25,90.739,90.67,16.5434]
[1645217583154,5.511,90.738,90.67,16.5434]
[1645217583353,15.9,90.73,90.67,16.5434]
[1645217583553,15.9,90.73,90.632,23.0194]
[1645217583853,16.5477,90.72,90.634,46.57959521]
[1645217584053,5.514,90.719,90.635,6.0]
[1645217584253,8.1433831,90.719,90.635,6.0]
[1645217584457,2.6293831,90.718,90.635,6.0]
[1645217584653,5.514,90.717,90.636,110.0]
[1645217584860,69.17349788,90.728,90.641,110.0]
[1645217585061,69.17349788,90.728,90.653,110.0]
[1645217585277,69.17349788,90.728,90.654,6.0]
[1645217585478,2.6293831,90.727,90.654,6.0]
[1645217585673,69.17349788,90.728,90.654,6.0]
[1645217585880,69.17349788,90.728,90.61,15.9]
[1645217585881,16.5474,90.72,90.633,6.0]
[1645217586075,5.514,90.719,90.633,6.0]
[1645217586273,5.514,90.719,90.634,0.25]
[1645217586475,0.25,90.718,90.634,0.25]
[1645217586676,0.25,90.718,90.634,46.55381646]
[1645217586875,0.25,90.718,90.635,6.0]
[1645217587075,0.25,90.718,90.636,0.25]
[1645217587378,48.86584062,90.709,90.65,16.5482]
[1645217588176,5.513,90.708,90.65,16.5482]
[1645217588577,48.86584062,90.709,90.65,16.5482]
[1645217589278,6.0,90.708,90.65,16.5482]
[1645217589681,6.0,90.708,90.635,6.0]
[1645217589885,16.551,90.7,90.64,16.5501]
[1645217590582,16.551,90.7,90.641,129.35324964]
[1645217590883,5.514,90.708,90.65,16.5475]
[1645217591283,5.514,90.708,90.633,6.0]
[1645217591482,8.1433831,90.708,90.633,6.0]
[1645217591684,5.764,90.707,90.621,6.0]
[1645217591982,8.3933831,90.707,90.613,6.0]
[1645217592189,8.3933831,90.707,90.614,47.57686255]
[1645217592384,8.3933831,90.707,90.615,6.25]
[1645217592583,8.3933831,90.707,90.616,24.3872]
[1645217592780,8.3933831,90.707,90.617,6.0]
[1645217592983,16.5512,90.7,90.63,16.5519]
[1645217593182,49.07987148,90.689,90.652,0.55594351]
[1645217594082,15.9,90.69,90.652,0.55594351]
[1645217594381,29.6964,90.699,90.652,0.55594351]
[1645217594382,24.1824,90.699,90.652,0.55594351]
[1645217594585,15.9,90.71,90.652,0.55594351]
[1645217594985,22.7564,90.726,90.652,0.55594351]
[1645217595184,61.05424589,90.725,90.652,0.55594351]
[1645217595386,61.05424589,90.725,90.66,16.5464]
[1645217596284,61.05424589,90.725,90.66,71.90658707]
[1645217596685,61.05424589,90.725,90.66,16.5464]
[1645217596885,16.5471,90.72,90.66,16.5464]
[1645217597086,5.513,90.719,90.66,16.5464]
[1645217597490,0.25,90.718,90.652,0.55594351]
[1645217597687,5.513,90.719,90.652,0.55594351]
[1645217597889,0.25,90.718,90.652,0.55594351]
[1645217598087,32.4471,90.72,90.65,17.10375012]
[1645217598288,5.763,90.719,90.65,17.10375012]
[1645217598687,6.0,90.718,90.65,17.10375012]
[1645217599292,6.0,90.717,90.65,17.10375012]
[1645217599489,0.25,90.719,90.65,17.10375012]
[1645217599690,6.25,90.719,90.65,17.10375012]
[1645217600590,6.25,90.719,90.66,16.5464]
[1645217600791,6.25,90.719,90.661,25.17043435]
[1645217601792,16.5489,90.71,90.65,0.55565012]
[1645217601991,29.2613,90.709,90.65,0.55565012]
[1645217602192,31.8906831,90.709,90.65,0.55565012]
[1645217602391,2.6293831,90.708,90.65,0.55565012]
[1645217602597,5.513,90.707,90.65,0.55565012]
[1645217602791,55.05944587,90.706,90.65,0.55565012]
[1645217602993,16.5519,90.7,90.65,0.55565012]
[1645217603194,15.9,90.7,90.65,0.55565012]
[1645217603991,15.9,90.7,90.634,6.0]
[1645217603992,15.9,90.7,90.64,16.5488]
[1645217604193,15.9,90.7,90.641,6.0]
[1645217604394,15.9,90.7,90.64,16.5488]
[1645217604991,15.9,90.7,90.641,6.0]
[1645217605196,6.0,90.699,90.641,6.0]
[1645217605495,6.0,90.699,90.634,0.55594351]
[1645217605697,24.5647,90.698,90.634,0.55594351]
[1645217605994,5.514,90.697,90.634,0.55594351]
[1645217607095,5.514,90.697,90.64,16.5502]
[1645217607296,24.5647,90.698,90.64,16.5502]
[1645217607796,24.5647,90.698,90.641,6.0]
[1645217608195,24.5647,90.698,90.64,16.5502]
[1645217608403,24.5647,90.698,90.634,0.55594351]
[1645217608599,5.514,90.697,90.634,0.55594351]
[1645217609198,0.25,90.696,90.622,23.47951064]
[1645217609398,5.515,90.695,90.622,23.47951064]
[1645217609597,15.9,90.68,90.622,23.47951064]
[1645217609796,6.0,90.679,90.623,6.0]
[1645217610000,6.0,90.679,90.622,0.55741064]
[1645217610199,5.515,90.678,90.622,0.55741064]
[1645217610402,32.6491831,90.678,90.622,0.55741064]
[1645217610799,39.89623457,90.677,90.622,0.55741064]
[1645217611000,39.89623457,90.677,90.63,16.5519]
[1645217611799,24.5048,90.693,90.63,16.5519]
[1645217611800,24.5048,90.693,90.631,26.52416479]
[1645217612200,24.5048,90.693,90.63,16.5519]
[1645217612500,0.25,90.692,90.63,16.5519]
[1645217613199,16.5522,90.69,90.622,0.55741064]
[1645217613399,5.515,90.689,90.622,0.55741064]
[1645217613600,5.515,90.691,90.622,0.55741064]
[1645217614399,16.5542,90.68,90.622,0.55741064]
[1645217614599,51.6134548,90.678,90.622,0.55741064]
[1645217614999,5.515,90.677,90.622,0.55741064]
[1645217615199,51.6134548,90.678,90.622,0.55741064]
[1645217615403,51.6134548,90.678,90.63,16.5517]
[1645217615799,0.25,90.677,90.63,16.5517]
[1645217616200,0.25,90.677,90.631,6.25]
[1645217616401,51.6134548,90.678,90.631,6.25]
[1645217616805,51.6134548,90.678,90.631,0.25]
[1645217617005,51.6134548,90.678,90.622,0.55741064]
[1645217617006,51.6134548,90.678,90.627,6.0]
[1645217617305,51.6134548,90.678,90.622,0.55741064]
[1645217617505,5.515,90.677,90.622,0.55741064]
[1645217617705,6.0,90.676,90.622,0.55741064]
[1645217617906,0.25,90.675,90.622,0.55741064]
[1645217618108,22.8517,90.675,90.622,0.55741064]
[1645217620632,22.6017,90.675,90.622,0.55741064]
[1645217620829,22.6017,90.675,90.63,16.5518]
[1645217621430,22.6017,90.675,90.622,0.55741064]
[1645217622030,8.6293831,90.674,90.622,0.55741064]
[1645217622231,0.25,90.673,90.622,0.55741064]
[1645217622629,22.6017,90.675,90.622,0.55741064]
[1645217622828,0.25,90.674,90.622,0.55741064]
[1645217623830,16.556,90.67,90.622,0.55741064]
[1645217625834,0.25,90.669,90.622,0.55741064]
[1645217628235,6.25,90.669,90.622,0.55741064]
[1645217628833,5.515,90.668,90.622,0.55741064]
[1645217629635,5.516,90.669,90.622,0.55741064]
[1645217630538,22.6017,90.675,90.622,0.55741064]
[1645217631139,51.6134548,90.678,90.623,2.6293831]
[1645217631438,3.08057357,90.741,90.623,2.6293831]
[1645217631439,15.9,90.71,90.624,6.25]
[1645217631637,32.4469,90.72,90.631,110.0]
[1645217631837,32.4469,90.72,90.624,6.25]
[1645217631838,24.9988,90.719,90.632,6.25]
[1645217632040,24.9988,90.719,90.632,6.0]
[1645217632238,11.514,90.718,90.622,0.55741064]
[1645217632437,14.1433831,90.718,90.622,0.55741064]
[1645217632637,112.6293831,90.717,90.622,0.55741064]
[1645217632840,110.0,90.709,90.622,0.55741064]
[1645217633138,110.0,90.697,90.622,0.55741064]
[1645217633339,110.0,90.695,90.622,0.55741064]
[1645217633541,110.0,90.679,90.622,0.55741064]
[1645217633738,15.9,90.67,90.622,0.55741064]
[1645217633938,16.5596,90.66,90.599,6.0]
[1645217634139,110.0,90.658,90.591,6.0]
[1645217634339,15.9,90.65,90.572,24.2846]
[1645217634539,15.9,90.65,90.56,24.4144]
[1645217634540,5.518,90.649,90.56,24.4144]
[1645217634740,110.0,90.648,90.56,24.4144]
[1645217634940,5.518,90.647,90.56,24.4144]
[1645217635339,110.0,90.639,90.56,16.5644]
[1645217635542,5.518,90.638,90.56,16.5644]
[1645217635738,5.518,90.638,90.561,6.0]
[1645217635939,5.518,90.639,90.561,6.0]
[1645217636539,48.67804602,90.629,90.57,16.5628]
[1645217636739,5.518,90.628,90.57,16.5628]
[1645217636938,23.574,90.627,90.57,16.5628]
[1645217638540,23.574,90.627,90.561,6.0]
[1645217639042,15.9,90.62,90.561,6.0]
[1645217639641,0.25,90.619,90.561,6.0]
[1645217640744,0.25,90.619,90.57,16.563]
[1645217640943,0.25,90.619,90.571,6.25]
[1645217641145,23.574,90.627,90.571,6.25]
[1645217641544,23.574,90.627,90.571,6.0]
[1645217641744,5.518,90.626,90.57,16.5629]
[1645217642043,5.518,90.626,90.552,6.0]
[1645217642244,6.0,90.625,90.553,22.6757]
[1645217642445,6.0,90.625,90.554,6.0]
[1645217643345,16.5657,90.62,90.56,16.5645]
[1645217643545,16.5657,90.62,90.554,6.0]
[1645217643546,16.5657,90.62,90.561,6.0]
[1645217643745,5.519,90.619,90.554,6.0]
[1645217644545,15.9,90.62,90.555,46.80491863]
[1645217644749,0.25,90.619,90.556,6.0]
[1645217645448,5.519,90.618,90.541,6.0]
[1645217645653,5.519,90.618,90.525,6.0]
[1645217645852,5.519,90.618,90.526,24.7357]
[1645217646049,5.519,90.618,90.528,110.0]
[1645217646250,5.519,90.618,90.54,16.5668]
[1645217646553,5.519,90.618,90.541,29.1021]
[1645217647550,16.5673,90.61,90.55,16.5657]
[1645217647752,55.36013542,90.609,90.551,6.0]
[1645217648151,78.86283542,90.609,90.551,6.0]
[1645217648353,0.25,90.608,90.551,6.0]
[1645217650452,0.25,90.608,90.552,0.25]
[1645217651054,0.25,90.608,90.551,6.0]
[1645217651256,0.25,90.608,90.56,16.5646]
[1645217651456,0.25,90.608,90.561,6.0]
[1645217651759,0.25,90.608,90.551,6.0]
[1645217651760,6.25,90.608,90.522,5.519]
[1645217652055,5.519,90.607,90.511,5.519]
[1645217652258,8.1483831,90.607,90.51,55.2293]
[1645217652458,8.1483831,90.607,90.525,43.37662916]
[1645217652780,78.86283542,90.609,90.53,16.5688]
[1645217652955,78.86283542,90.609,90.531,0.25]
[1645217653757,78.86283542,90.609,90.541,31.38359933]
[1645217653955,23.5027,90.609,90.542,6.25]
[1645217654156,5.519,90.634,90.543,5.52]
[1645217654361,5.519,90.658,90.544,6.25]
[1645217654561,5.519,90.658,90.546,110.0]
[1645217654762,5.519,90.658,90.545,5.519]
[1645217654763,5.519,90.658,90.548,110.0]
[1645217654958,54.77135656,90.636,90.55,110.0]
[1645217655159,54.77135656,90.636,90.552,110.0]
[1645217655356,6.0,90.635,90.57,16.56]